[Event "Romanian Open 2019"]
[Site "Alba Iulia"]
[Date "2019.10.30"]
[Round "4.2"]
[White "Harutjunyan, Gevorg"]
[Black "Moksh Amit Doshi"]
[Result "1-0"]
[ECO "B90"]
[WhiteElo "2428"]
[BlackElo "2328"]
[Annotator "NA"]
[PlyCount "73"]
[EventDate "2019.10.28"]
[EventType "swiss"]
[EventCountry "ROU"]
[SourceTitle "playchess.com"]
[Source "ChessBase"]
[SourceQuality "1"]
[TimeControl "5400+30"]

1. e4 {[%emt 0:00:00]} c5 {[%emt 0:00:00]} 2. Nf3 {[%emt 0:00:00]} d6 {[%emt 0:00:00]} 3. d4 {[%emt 0:00:00]} cxd4 {[%emt 0:00:00]} 4. Nxd4 {[%emt 0:00:00]} Nf6 {[%emt 0:00:02]} 5. Nc3 {[%emt 0:00:01]} a6 {[%emt 0:00:07]} 6. h3 {[%emt 0:00:27]} e5 {[%emt 0:00:33]} 7. Nb3 {[%emt 0:00:10]} Be6 {[%emt 0:00:08]} 8. f4 {[%emt 0:00:07]} g6 {[%emt 0:00:06]} 9. Qf3 {[%emt 0:04:59]} Nc6 {[%emt 0:01:31]} 10. Be3 {[%emt 0:00:48]} exf4 {[%emt 0:04:05]} 11. Qxf4 {[%emt 0:02:36]} Nh5 {[%emt 0:02:23]} 12. Qf2 {[%emt 0:00:17]} Be7 {[%emt 0:02:21]} 13. O-O-O {[%emt 0:01:37]} O-O {[%emt 0:03:50]} 14. g4 {[%emt 0:04:13]} Bh4 {[%emt 0:01:52]} 15. Qh2 {[%emt 0:04:10]} Ng3 {[%emt 0:04:24]} 16. Rg1 {[%emt 0:00:05]} Nxf1 {[%emt 0:01:36]} 17. Rgxf1 {[%emt 0:00:08]} Bc4 {[%emt 0:05:47]} 18. Rg1 {[%emt 0:01:44]} Ne5 {[%emt 0:02:57]} 19. Nd4 {[%emt 0:04:22]} b5 {[%emt 0:04:37]} 20. a3 {[%emt 0:21:00]} b4 {[%emt 0:05:28]} 21. axb4 {[%emt 0:00:09]} Qb8 {[%emt 0:00:13]} 22. Nf5 {[%emt 0:05:23]} d5 {[%emt 0:22:32]} 23. Bf4 {[%emt 0:12:33]} Bg5 {[%emt 0:03:52]} 24. Kb1 {[%emt 0:09:36]} Bxf4 {[%emt 0:00:57]} 25. Qxf4 {[%emt 0:00:12]} Nc6 {[%emt 0:00:14]} 26. Qh6 {[%emt 0:00:49]} Qe5 {[%emt 0:00:50]} 27. Nxd5 {[%emt 0:00:34]} Rab8 {[%emt 0:01:41]} 28. g5 {[%emt 0:04:16]} Bxd5 {[%emt 0:00:07]} 29. Rxd5 {[%emt 0:00:25]} Qh8 {[%emt 0:00:08]} 30. c3 {[%emt 0:03:01]} Rfe8 {[%emt 0:00:28]} 31. Ne3 {[%emt 0:05:56]} Rxe4 {[%emt 0:02:24]} 32. Ng4 {[%emt 0:00:49]} Re6 {[%emt 0:01:00]} 33. Rgd1 {[%emt 0:03:34]} Qg7 {[%emt 0:00:26]} 34. Qh4 {[%emt 0:00:35]} Kh8 {[%emt 0:01:41]} 35. Nf6 {[%emt 0:01:07]} h5 {[%emt 0:00:12]} 36. Rd6 {[%emt 0:00:51]} Ne5 {[%emt 0:01:46]} 37. Rd8+ {[%emt 0:00:50]} 1-0

[Event "Romanian Open 2019"]
[Site "Alba Iulia"]
[Date "2019.10.30"]
[Round "4.3"]
[White "Banzea, Alexandru-Bogdan"]
[Black "Omelja, Artem"]
[Result "1/2-1/2"]
[ECO "C67"]
[WhiteElo "2389"]
[BlackElo "2424"]
[Annotator "NA"]
[PlyCount "28"]
[EventDate "2019.10.28"]
[EventType "swiss"]
[EventCountry "ROU"]
[SourceTitle "playchess.com"]
[Source "ChessBase"]
[SourceQuality "1"]
[TimeControl "5400+30"]

1. e4 {[%emt 0:00:00]} e5 {[%emt 0:04:18]} 2. Nf3 {[%emt 0:00:00]} Nc6 {[%emt 0:00:06]} 3. Bb5 {[%emt 0:00:00]} Nf6 {[%emt 0:00:09]} 4. O-O {[%emt 0:00:00]} Nxe4 {[%emt 0:00:07]} 5. Re1 {[%emt 0:00:03]} Nd6 {[%emt 0:00:09]} 6. Nxe5 {[%emt 0:00:06]} Be7 {[%emt 0:00:09]} 7. Bf1 {[%emt 0:00:06]} Nxe5 {[%emt 0:00:09]} 8. Rxe5 {[%emt 0:00:03]} O-O {[%emt 0:00:12]} 9. d4 {[%emt 0:00:22]} Bf6 {[%emt 0:00:10]} 10. Re1 {[%emt 0:00:29]} Re8 {[%emt 0:00:16]} 11. Rxe8+ {[%emt 0:00:22]} Nxe8 {[%emt 0:00:52]} 12. d5 {[%emt 0:00:24]} d6 {[%emt 0:00:47]} 13. Nd2 {[%emt 0:01:06]} Bg5 {[%emt 0:00:55]} 14. Nf3 {[%emt 0:03:46]} Bxc1 {[%emt 0:00:14]} 1/2-1/2

[Event "Romanian Open 2019"]
[Site "Alba Iulia"]
[Date "2019.10.30"]
[Round "4.4"]
[White "Andreev, Eduard"]
[Black "Shishkin, Vadim"]
[Result "1/2-1/2"]
[ECO "B48"]
[WhiteElo "2435"]
[BlackElo "2428"]
[Annotator "NA"]
[PlyCount "27"]
[EventDate "2019.10.28"]
[EventType "swiss"]
[EventCountry "ROU"]
[SourceTitle "playchess.com"]
[Source "ChessBase"]
[SourceQuality "1"]
[TimeControl "5400+30"]

1. e4 {[%emt 0:00:00]} c5 {[%emt 0:00:00]} 2. Nf3 {[%emt 0:00:00]} Nc6 {[%emt 0:00:00]} 3. d4 {[%emt 0:00:00]} cxd4 {[%emt 0:00:00]} 4. Nxd4 {[%emt 0:00:01]} e6 {[%emt 0:00:23]} 5. Nc3 {[%emt 0:00:19]} Qc7 {[%emt 0:00:24]} 6. Be3 {[%emt 0:00:49]} a6 {[%emt 0:00:08]} 7. Qd2 {[%emt 0:00:51]} Nf6 {[%emt 0:01:13]} 8. f4 {[%emt 0:00:54]} Bb4 {[%emt 0:00:53]} 9. Bd3 {[%emt 0:00:22]} Na5 {[%emt 0:00:39]} 10. a3 {[%emt 0:00:58]} Bxc3 {[%emt 0:00:15]} 11. Qxc3 {[%emt 0:00:11]} Qxc3+ {[%emt 0:00:04]} 12. bxc3 {[%emt 0:00:06]} d5 {[%emt 0:00:27]} 13. exd5 {[%emt 0:00:26]} exd5 {[%emt 0:00:04]} 14. Nb3 {[%emt 0:02:48]} 1/2-1/2

[Event "Romanian Open 2019"]
[Site "Alba Iulia"]
[Date "2019.10.30"]
[Round "4.8"]
[White "Secheres, Adrian-Simion"]
[Black "Istratescu, Andrei"]
[Result "1/2-1/2"]
[ECO "B06"]
[WhiteElo "2397"]
[BlackElo "2564"]
[Annotator "ChessBase"]
[PlyCount "87"]
[EventDate "2019.10.28"]
[EventType "swiss"]
[EventCountry "ROU"]
[SourceTitle "playchess.com"]
[Source "ChessBase"]
[SourceQuality "1"]
[TimeControl "5400+30"]

1. d4 {[%emt 0:00:00]} g6 {[%emt 0:02:21]} 2. e4 {[%emt 0:00:00]} Bg7 {[%emt 0:00:03]} 3. Nc3 {[%emt 0:00:17]} c6 {[%emt 0:00:27]} 4. f4 {[%emt 0:00:28]} d5 {[%emt 0:00:03]} 5. e5 {[%emt 0:00:14]} Nh6 {[%emt 0:00:03]} 6. Be3 {[%emt 0:00:40]} f6 {[%emt 0:01:06]} 7. h3 {[%emt 0:00:39]} Nf5 {[%emt 0:18:09]} 8. Bf2 {[%emt 0:00:22]} fxe5 {[%emt 0:00:11]} 9. dxe5 {[%emt 0:00:34]} d4 {[%emt 0:00:20]} 10. Ne4 {[%emt 0:02:06]} Qb6 {[%emt 0:04:44]} 11. Bd3 {[%emt 0:07:25]} O-O {[%emt 0:04:56]} 12. Ne2 {[%emt 0:07:11]} Be6 {[%emt 0:02:33]} 13. O-O {[%emt 0:05:23]} c5 {[%emt 0:07:34]} 14. Ng5 {[%emt 0:12:55]} Bd5 {[%emt 0:10:05]} 15. c4 {[%emt 0:04:13]} Bf7 {[%emt 0:00:08]} 16. g4 {[%emt 0:04:39]} Ne3 {[%emt 0:00:27]} 17. Bxe3 {[%emt 0:00:41]} dxe3 {[%emt 0:00:01]} 18. Qc1 {[%emt 0:05:29]} Nc6 {[%emt 0:01:11]} 19. Qxe3 {[%emt 0:03:23]} Qxb2 {[%emt 0:00:39]} 20. Rfb1 {[%emt 0:23:31]} Qa3 {[%emt 0:00:12]} 21. Rb3 {[%emt 0:00:33]} Qa6 {[%emt 0:01:40]} 22. Nxf7 {[%emt 0:06:02]} Rxf7 {[%emt 0:00:21]} 23. Qxc5 {[%emt 0:02:16]} e6 {[%emt 0:04:15]} 24. Qb5 {[%emt 0:04:15]} Qa5 {[%emt 0:00:18]} 25. Qxa5 {[%emt 0:01:30]} Nxa5 {[%emt 0:00:14]} 26. Rb5 {[%emt 0:02:11]} b6 {[%emt 0:01:55]} 27. c5 {[%emt 0:02:29]} Bf8 {[%emt 0:02:55]} 28. cxb6 {[%emt 0:00:56]} axb6 {[%emt 0:00:27]} 29. Be4 {[%emt 0:01:22]} Raa7 {[%emt 0:01:22]} 30. Rc1 {[%emt 0:00:53]} Bc5+ {[%emt 0:00:09]} 31. Kg2 {[%emt 0:00:15]} Be3 {[%emt 0:03:38]} 32. Rc8+ {[%emt 0:01:12]} Kg7 {[%emt 0:00:21]} 33. Kf3 {[%emt 0:00:39]} Bc5 {[%emt 0:00:41]} 34. f5 {[%emt 0:01:23]} gxf5 {[%emt 0:00:48]} 35. gxf5 {[%emt 0:00:02]} exf5 {[%emt 0:00:05]} 36. Bd5 {[%emt 0:00:24]} Rf8 {[%emt 0:00:45]} 37. Rxf8 {[%emt 0:00:25]} Kxf8 {[%emt 0:00:07]} 38. Nf4 {[%emt 0:00:25]} Ke7 {[%emt 0:00:52]} 39. Rb2 {[%emt 0:01:27]} Bd4 {[%emt 0:00:11]} 40. Re2 {[%emt 0:00:31]} b5 {[%emt 0:01:19]} 41. Bg8 {[%emt 0:00:34]} Nc4 {[%emt 0:00:22]} 42. Bxc4 {[%emt 0:00:29]} bxc4 {[%emt 0:00:15]} 43. Nd5+ {[%emt 0:00:16]} Ke6 {[%emt 0:00:09]} 44. Nf4+ {[%emt 0:00:05] Kxe5 Ke4+} 1/2-1/2

[Event "Romanian Open 2019"]
[Site "Alba Iulia"]
[Date "2019.10.30"]
[Round "4.9"]
[White "Vedmediuc, Serghei"]
[Black "Ashwath, R.."]
[Result "1/2-1/2"]
[ECO "C60"]
[WhiteElo "2457"]
[BlackElo "2340"]
[Annotator "ChessBase"]
[PlyCount "28"]
[EventDate "2019.10.28"]
[EventType "swiss"]
[EventCountry "ROU"]
[SourceTitle "playchess.com"]
[Source "ChessBase"]
[SourceQuality "1"]
[TimeControl "5400+30"]

1. e4 {[%emt 0:00:00]} e5 {[%emt 0:02:17]} 2. Nf3 {[%emt 0:00:00]} Nc6 {[%emt 0:00:03]} 3. Bb5 {[%emt 0:00:00]} g6 {[%emt 0:00:08]} 4. c3 {[%emt 0:00:33]} a6 {[%emt 0:00:16]} 5. Ba4 {[%emt 0:00:05]} Bg7 {[%emt 0:00:14]} 6. d4 {[%emt 0:00:26]} b5 {[%emt 0:00:14]} 7. Bb3 {[%emt 0:00:08]} exd4 {[%emt 0:00:11]} 8. cxd4 {[%emt 0:00:05]} d6 {[%emt 0:00:07]} 9. O-O {[%emt 0:24:21]} Nge7 {[%emt 0:01:33]} 10. Nc3 {[%emt 0:02:43]} O-O {[%emt 0:00:37]} 11. Nd5 {[%emt 0:02:37]} h6 {[%emt 0:19:10]} 12. Nxe7+ {[%emt 0:12:33]} Nxe7 {[%emt 0:09:47]} 13. Re1 {[%emt 0:01:11]} c5 {[%emt 0:07:30]} 14. Be3 {[%emt 0:13:37]} c4 {[%emt 0:05:11]} 1/2-1/2

[Event "Romanian Open 2019"]
[Site "Alba Iulia"]
[Date "2019.10.30"]
[Round "4.10"]
[White "Bilych, Olexiy"]
[Black "Nester, Ihor"]
[Result "1/2-1/2"]
[ECO "C50"]
[WhiteElo "2281"]
[BlackElo "2381"]
[Annotator "NA"]
[PlyCount "77"]
[EventDate "2019.10.28"]
[EventType "swiss"]
[EventCountry "ROU"]
[SourceTitle "playchess.com"]
[Source "ChessBase"]
[SourceQuality "1"]
[TimeControl "5400+30"]

1. e4 {[%emt 0:00:00]} e5 {[%emt 0:01:19]} 2. Nf3 {[%emt 0:00:00]} Nc6 {[%emt 0:00:06]} 3. Bc4 {[%emt 0:00:00]} Nf6 {[%emt 0:00:15]} 4. d3 {[%emt 0:00:00]} Bc5 {[%emt 0:00:09]} 5. c3 {[%emt 0:00:00]} d6 {[%emt 0:00:13]} 6. O-O {[%emt 0:00:02]} h6 {[%emt 0:02:40]} 7. Re1 {[%emt 0:00:31]} O-O {[%emt 0:00:32]} 8. h3 {[%emt 0:00:14]} a6 {[%emt 0:00:26]} 9. a4 {[%emt 0:01:13]} Re8 {[%emt 0:07:34]} 10. a5 {[%emt 0:10:13]} Ba7 {[%emt 0:02:55]} 11. Qb3 {[%emt 0:00:38]} Qe7 {[%emt 0:10:42]} 12. Be3 {[%emt 0:01:57]} Bxe3 {[%emt 0:01:08]} 13. Rxe3 {[%emt 0:00:11]} Nd8 {[%emt 0:33:30]} 14. d4 {[%emt 0:05:08]} Nh5 {[%emt 0:01:34]} 15. Nbd2 {[%emt 0:01:03]} Nf4 {[%emt 0:00:34]} 16. Nf1 {[%emt 0:03:03]} Qf6 {[%emt 0:00:38]} 17. Ng3 {[%emt 0:02:54]} Kh7 {[%emt 0:13:46]} 18. Rd1 {[%emt 0:10:15]} g6 {[%emt 0:08:39]} 19. Qa4 {[%emt 0:08:16]} Rf8 {[%emt 0:01:02]} 20. Qa3 {[%emt 0:00:22]} Kg7 {[%emt 0:00:43]} 21. dxe5 {[%emt 0:01:45]} dxe5 {[%emt 0:00:12]} 22. Qc5 {[%emt 0:00:19]} Nc6 {[%emt 0:00:55]} 23. Kh2 {[%emt 0:10:04]} Re8 {[%emt 0:01:36]} 24. Bd5 {[%emt 0:04:35]} Bd7 {[%emt 0:01:41]} 25. b4 {[%emt 0:03:49]} Qe7 {[%emt 0:04:37]} 26. Qc4 {[%emt 0:01:09]} Be6 {[%emt 0:02:07]} 27. Ne2 {[%emt 0:00:23]} Nxe2 {[%emt 0:00:40]} 28. Rxe2 {[%emt 0:00:52]} Rad8 {[%emt 0:01:17]} 29. Ree1 {[%emt 0:12:53]} Rd6 {[%emt 0:00:43]} 30. Qc5 {[%emt 0:00:40]} Qf6 {[%emt 0:01:46]} 31. c4 {[%emt 0:02:10]} Qf4+ {[%emt 0:00:42]} 32. Kh1 {[%emt 0:01:54]} Bxh3 {[%emt 0:00:31]} 33. Rd3 {[%emt 0:00:04]} Be6 {[%emt 0:00:35]} 34. b5 {[%emt 0:00:58]} axb5 {[%emt 0:00:17]} 35. cxb5 {[%emt 0:00:22]} Bxd5 {[%emt 0:00:25]} 36. exd5 {[%emt 0:01:51]} Qb4 {[%emt 0:00:34]} 37. Qxb4 {[%emt 0:12:11]} Nxb4 {[%emt 0:00:01]} 38. Rb3 {[%emt 0:00:06]} Nxd5 {[%emt 0:00:15]} 39. Rxe5 {[%emt 0:00:05]} 1/2-1/2

[Event "Romanian Open 2019"]
[Site "Alba Iulia"]
[Date "2019.10.30"]
[Round "4.11"]
[White "Talu, Mircea"]
[Black "Dixit, Nikhil"]
[Result "1/2-1/2"]
[ECO "E69"]
[WhiteElo "2288"]
[BlackElo "2358"]
[Annotator "NA"]
[PlyCount "122"]
[EventDate "2019.10.28"]
[EventType "swiss"]
[EventCountry "ROU"]
[SourceTitle "playchess.com"]
[Source "ChessBase"]
[SourceQuality "1"]
[TimeControl "5400+30"]

1. d4 {[%emt 0:00:00]} Nf6 {[%emt 0:00:00]} 2. c4 {[%emt 0:00:00]} g6 {[%emt 0:00:00]} 3. g3 {[%emt 0:00:00]} Bg7 {[%emt 0:00:05]} 4. Bg2 {[%emt 0:00:02]} O-O {[%emt 0:00:05]} 5. Nc3 {[%emt 0:00:04]} d6 {[%emt 0:00:04]} 6. Nf3 {[%emt 0:00:06]} Nbd7 {[%emt 0:00:03]} 7. O-O {[%emt 0:00:29]} e5 {[%emt 0:00:15]} 8. e4 {[%emt 0:00:14]} c6 {[%emt 0:00:06]} 9. h3 {[%emt 0:00:20]} exd4 {[%emt 0:01:48]} 10. Nxd4 {[%emt 0:00:08]} Qa5 {[%emt 0:00:47]} 11. Bf4 {[%emt 0:20:22]} Ne5 {[%emt 0:05:36]} 12. Nb3 {[%emt 0:00:42]} Qc7 {[%emt 0:03:53]} 13. c5 {[%emt 0:06:10]} dxc5 {[%emt 0:01:12]} 14. Bxe5 {[%emt 0:00:14]} Qxe5 {[%emt 0:00:12]} 15. f4 {[%emt 0:00:05]} Qe7 {[%emt 0:07:49]} 16. e5 {[%emt 0:01:06]} Nd7 {[%emt 0:01:36]} 17. Re1 {[%emt 0:13:30]} c4 {[%emt 0:05:24]} 18. Nd2 {[%emt 0:02:30]} Nb6 {[%emt 0:03:11]} 19. Qe2 {[%emt 0:00:36]} Be6 {[%emt 0:01:59]} 20. Nce4 {[%emt 0:01:36]} Bd5 {[%emt 0:06:05]} 21. Kh2 {[%emt 0:11:04]} Rad8 {[%emt 0:02:10]} 22. Nd6 {[%emt 0:16:20]} Rxd6 {[%emt 0:10:48]} 23. exd6 {[%emt 0:00:02]} Qxd6 {[%emt 0:01:25]} 24. Rab1 {[%emt 0:05:12]} Qc5 {[%emt 0:07:54]} 25. Ne4 {[%emt 0:04:07]} Qa5 {[%emt 0:03:39]} 26. Qd2 {[%emt 0:03:41]} Qxd2 {[%emt 0:15:36]} 27. Nxd2 {[%emt 0:00:02]} Na4 {[%emt 0:00:58]} 28. Nxc4 {[%emt 0:02:17]} Bxc4 {[%emt 0:03:04]} 29. b3 {[%emt 0:00:09]} Bd3 {[%emt 0:01:49]} 30. bxa4 {[%emt 0:00:07]} Bxb1 {[%emt 0:00:11]} 31. Rxb1 {[%emt 0:00:05]} b6 {[%emt 0:00:32]} 32. Bxc6 {[%emt 0:00:13]} Rd8 {[%emt 0:00:04]} 33. Rg1 {[%emt 0:01:30]} h5 {[%emt 0:01:10]} 34. h4 {[%emt 0:00:52]} Rd3 {[%emt 0:00:29]} 35. Rg2 {[%emt 0:00:25]} Bc3 {[%emt 0:00:47]} 36. Re2 {[%emt 0:00:07]} Rd6 {[%emt 0:06:23]} 37. Bf3 {[%emt 0:01:07]} Kg7 {[%emt 0:00:33]} 38. Re7 {[%emt 0:01:37]} a5 {[%emt 0:00:37]} 39. Kh3 {[%emt 0:02:21]} Kf8 {[%emt 0:01:35]} 40. Re2 {[%emt 0:02:27]} Bb4 {[%emt 0:00:43]} 41. Be4 {[%emt 0:02:34]} Rd4 {[%emt 0:03:01]} 42. f5 {[%emt 0:02:03]} gxf5 {[%emt 0:00:52]} 43. Bxf5 {[%emt 0:00:36]} Bd6 {[%emt 0:00:58]} 44. Bc2 {[%emt 0:00:39]} Rc4 {[%emt 0:00:27]} 45. Rd2 {[%emt 0:01:31]} Be5 {[%emt 0:02:32]} 46. Bd1 {[%emt 0:01:36]} Rc3 {[%emt 0:00:25]} 47. Rg2 {[%emt 0:01:07]} f5 {[%emt 0:00:57]} 48. Bxh5 {[%emt 0:00:05]} f4 {[%emt 0:00:22]} 49. Be2 {[%emt 0:01:40]} Kg7 {[%emt 0:01:25]} 50. Kg4 {[%emt 0:00:31]} fxg3 {[%emt 0:00:27]} 51. Bb5 {[%emt 0:00:10]} Kf6 {[%emt 0:00:41]} 52. Re2 {[%emt 0:00:36]} Rc8 {[%emt 0:00:52]} 53. Kh3 {[%emt 0:00:29]} Rc1 {[%emt 0:01:30]} 54. Kg4 {[%emt 0:00:43]} Rf1 {[%emt 0:01:10]} 55. Bc6 {[%emt 0:00:36]} Rd1 {[%emt 0:00:26]} 56. Kh3 {[%emt 0:00:30]} Rd4 {[%emt 0:00:34]} 57. Rc2 {[%emt 0:00:31]} Kf5 {[%emt 0:00:37]} 58. Bb5 {[%emt 0:00:28]} Rd1 {[%emt 0:00:26]} 59. Bc6 {[%emt 0:00:17]} Kf4 {[%emt 0:00:29]} 60. Rc4+ {[%emt 0:00:02]} Rd4 {[%emt 0:00:39]} 61. Rxd4+ {[%emt 0:00:09]} Bxd4 {[%emt 0:00:06]} 1/2-1/2

[Event "Romanian Open 2019"]
[Site "Alba Iulia"]
[Date "2019.10.30"]
[Round "4.12"]
[White "Sahil, Tickoo"]
[Black "Manush Shah"]
[Result "0-1"]
[ECO "D45"]
[WhiteElo "2167"]
[BlackElo "2352"]
[Annotator "NA"]
[PlyCount "104"]
[EventDate "2019.10.28"]
[EventType "swiss"]
[EventCountry "ROU"]
[SourceTitle "playchess.com"]
[Source "ChessBase"]
[SourceQuality "1"]
[TimeControl "5400+30"]

1. d4 {[%emt 0:03:20]} d5 {[%emt 0:00:00]} 2. c4 {[%emt 0:00:06]} e6 {[%emt 0:00:13]} 3. Nc3 {[%emt 0:00:08]} Nf6 {[%emt 0:00:08]} 4. Nf3 {[%emt 0:00:12]} c6 {[%emt 0:00:11]} 5. e3 {[%emt 0:00:07]} Nbd7 {[%emt 0:00:11]} 6. Qc2 {[%emt 0:00:07]} b6 {[%emt 0:00:50]} 7. b3 {[%emt 0:00:18]} Bb7 {[%emt 0:00:18]} 8. Bd3 {[%emt 0:00:10]} Rc8 {[%emt 0:01:14]} 9. Bb2 {[%emt 0:03:52]} Bd6 {[%emt 0:01:03]} 10. Qe2 {[%emt 0:02:12]} Qe7 {[%emt 0:01:46]} 11. O-O {[%emt 0:06:53]} O-O {[%emt 0:00:52]} 12. Rfe1 {[%emt 0:05:06]} dxc4 {[%emt 0:05:30]} 13. Bxc4 {[%emt 0:00:49]} b5 {[%emt 0:01:55]} 14. Bd3 {[%emt 0:00:15]} e5 {[%emt 0:00:20]} 15. e4 {[%emt 0:16:21]} Rfe8 {[%emt 0:09:34]} 16. Rad1 {[%emt 0:01:05]} exd4 {[%emt 0:06:32]} 17. Nxd4 {[%emt 0:00:12]} g6 {[%emt 0:00:40]} 18. Nf3 {[%emt 0:14:05]} Ne5 {[%emt 0:04:32]} 19. Nxe5 {[%emt 0:00:46]} Bxe5 {[%emt 0:00:24]} 20. g3 {[%emt 0:08:31]} a6 {[%emt 0:03:09]} 21. a4 {[%emt 0:02:12]} Rcd8 {[%emt 0:12:33]} 22. Nb1 {[%emt 0:11:38]} Ng4 {[%emt 0:06:36]} 23. Ba3 {[%emt 0:04:09]} Qe6 {[%emt 0:01:43]} 24. Bc2 {[%emt 0:10:14]} Bd4 {[%emt 0:08:46]} 25. Rxd4 {[%emt 0:00:07]} Rxd4 {[%emt 0:00:01]} 26. Bb2 {[%emt 0:00:08]} Rd7 {[%emt 0:00:41]} 27. f3 {[%emt 0:01:37]} Ne5 {[%emt 0:01:46]} 28. f4 {[%emt 0:04:47]} Ng4 {[%emt 0:00:03]} 29. h3 {[%emt 0:00:12]} Nh6 {[%emt 0:02:28]} 30. g4 {[%emt 0:01:35]} f6 {[%emt 0:00:20]} 31. Qe3 {[%emt 0:01:13]} Nf7 {[%emt 0:00:26]} 32. Qc3 {[%emt 0:00:28]} g5 {[%emt 0:01:33]} 33. Qxf6 {[%emt 0:02:21]} Qxf6 {[%emt 0:00:08]} 34. Bxf6 {[%emt 0:00:02]} gxf4 {[%emt 0:00:23]} 35. e5 {[%emt 0:00:05]} Rd6 {[%emt 0:02:22]} 36. Kf1 {[%emt 0:01:18]} Rde6 {[%emt 0:00:48]} 37. Bf5 {[%emt 0:00:13]} Rxe5 {[%emt 0:00:17]} 38. Bxe5 {[%emt 0:00:16]} Rxe5 {[%emt 0:00:05]} 39. Rxe5 {[%emt 0:01:06]} Nxe5 {[%emt 0:00:01]} 40. Be4 {[%emt 0:00:12]} Bc8 {[%emt 0:00:54]} 41. axb5 {[%emt 0:00:06]} axb5 {[%emt 0:01:35]} 42. b4 {[%emt 0:00:28]} h5 {[%emt 0:01:16]} 43. gxh5 {[%emt 0:00:33]} Bxh3+ {[%emt 0:00:01]} 44. Kf2 {[%emt 0:00:36]} Kg7 {[%emt 0:00:08]} 45. Nc3 {[%emt 0:01:37]} Bg4 {[%emt 0:00:18]} 46. Bxc6 {[%emt 0:00:39]} Nxc6 {[%emt 0:00:03]} 47. Nxb5 {[%emt 0:00:08]} Nxb4 {[%emt 0:00:26]} 48. Nd4 {[%emt 0:00:50]} Nd3+ {[%emt 0:00:09]} 49. Kg2 {[%emt 0:00:30]} Kh6 {[%emt 0:00:04]} 50. Nb5 {[%emt 0:00:29]} f3+ {[%emt 0:00:14]} 51. Kh2 {[%emt 0:00:34]} f2 {[%emt 0:00:07]} 52. Kg2 {[%emt 0:00:24]} Bh3+ {[%emt 0:00:09]} 0-1

[Event "Romanian Open 2019"]
[Site "Alba Iulia"]
[Date "2019.10.31"]
[Round "6.1"]
[White "Fedorov, Alexei"]
[Black "Manolache, Marius"]
[Result "1-0"]
[ECO "B00"]
[WhiteElo "2551"]
[BlackElo "2548"]
[Annotator "RC"]
[PlyCount "89"]
[EventDate "2019.10.28"]
[EventType "swiss"]
[EventCountry "ROU"]
[SourceTitle "playchess.com"]
[Source "ChessBase"]
[SourceQuality "1"]
[TimeControl "5400+30"]

1. e4 {[%emt 0:00:00]} d6 {[%emt 0:00:00]} 2. g3 {[%emt 0:00:09]} Nf6 {[%emt 0:00:58]} 3. Bg2 {[%emt 0:00:06]} e5 {[%emt 0:00:27]} 4. Ne2 {[%emt 0:00:42]} h5 {[%emt 0:03:01]} 5. h3 {[%emt 0:00:55]} Be7 {[%emt 0:01:50]} 6. d4 {[%emt 0:02:35]} c6 {[%emt 0:03:48]} 7. c4 {[%emt 0:03:32]} Be6 {[%emt 0:06:19]} 8. b3 {[%emt 0:03:48]} c5 {[%emt 0:04:56]} 9. d5 {[%emt 0:01:12]} Bc8 {[%emt 0:00:07]} 10. Nbc3 {[%emt 0:03:19]} a6 {[%emt 0:01:12]} 11. Be3 {[%emt 0:05:50]} Nbd7 {[%emt 0:00:56]} 12. Qd2 {[%emt 0:00:55]} h4 {[%emt 0:04:39]} 13. g4 {[%emt 0:02:37]} Nh7 {[%emt 0:00:23]} 14. O-O {[%emt 0:02:05]} Bg5 {[%emt 0:01:48]} 15. f4 {[%emt 0:01:13]} exf4 {[%emt 0:00:21]} 16. Nxf4 {[%emt 0:01:31]} Ne5 {[%emt 0:00:28]} 17. Na4 {[%emt 0:12:07]} O-O {[%emt 0:03:02]} 18. Nb2 {[%emt 0:01:17]} b5 {[%emt 0:03:07]} 19. Nfd3 {[%emt 0:06:02]} Qe7 {[%emt 0:05:25]} 20. Nxe5 {[%emt 0:02:09]} Qxe5 {[%emt 0:00:40]} 21. Nd3 {[%emt 0:02:11]} Bxe3+ {[%emt 0:10:21]} 22. Qxe3 {[%emt 0:00:29]} Qe7 {[%emt 0:00:07]} 23. e5 {[%emt 0:01:28]} bxc4 {[%emt 0:02:10]} 24. bxc4 {[%emt 0:00:11]} a5 {[%emt 0:02:21]} 25. Qf4 {[%emt 0:08:09]} dxe5 {[%emt 0:00:12]} 26. Nxe5 {[%emt 0:01:56]} Ra6 {[%emt 0:02:28]} 27. Nc6 {[%emt 0:00:57]} Qg5 {[%emt 0:01:01]} 28. Rab1 {[%emt 0:02:50]} Qxf4 {[%emt 0:04:25]} 29. Rxf4 {[%emt 0:00:10]} Re8 {[%emt 0:00:13]} 30. Rb5 {[%emt 0:01:52]} Bd7 {[%emt 0:03:41]} 31. Rxc5 {[%emt 0:01:52]} g5 {[%emt 0:03:08]} 32. Re4 {[%emt 0:00:54]} Rxe4 {[%emt 0:01:31]} 33. Bxe4 {[%emt 0:00:05]} Nf6 {[%emt 0:00:08]} 34. Bf3 {[%emt 0:03:05]} a4 {[%emt 0:00:12]} 35. Nb4 {[%emt 0:03:35]} Rb6 {[%emt 0:03:36]} 36. a3 {[%emt 0:00:06]} Kf8 {[%emt 0:03:12]} 37. Rc7 {[%emt 0:02:40]} Rb8 {[%emt 0:00:23]} 38. c5 {[%emt 0:02:12]} Rc8 {[%emt 0:01:09]} 39. Rxc8+ {[%emt 0:00:26]} Bxc8 {[%emt 0:00:04]} 40. d6 {[%emt 0:01:01]} Be6 {[%emt 0:00:29]} 41. c6 {[%emt 0:01:08]} Ke8 {[%emt 0:00:46]} 42. Na6 {[%emt 0:05:41]} Kd8 {[%emt 0:02:32]} 43. Nc5 {[%emt 0:00:22]} Kc8 {[%emt 0:01:35]} 44. Nxa4 {[%emt 0:01:05]} Ne8 {[%emt 0:00:16]} 45. d7+ {[%emt 0:00:09]} 1-0

[Event "Romanian Open 2019"]
[Site "Alba Iulia"]
[Date "2019.10.31"]
[Round "6.6"]
[White "Filip, Lucian-Ioan"]
[Black "Ashwath, R.."]
[Result "1/2-1/2"]
[ECO "E04"]
[WhiteElo "2418"]
[BlackElo "2340"]
[Annotator "NA"]
[PlyCount "25"]
[EventDate "2019.10.28"]
[EventType "swiss"]
[EventCountry "ROU"]
[SourceTitle "playchess.com"]
[Source "ChessBase"]
[SourceQuality "1"]
[TimeControl "5400+30"]

1. d4 {[%emt 0:04:32]} Nf6 {[%emt 0:00:00]} 2. c4 {[%emt 0:00:12]} e6 {[%emt 0:00:00]} 3. Nf3 {[%emt 0:00:07]} d5 {[%emt 0:00:00]} 4. g3 {[%emt 0:00:10]} dxc4 {[%emt 0:00:18]} 5. Bg2 {[%emt 0:00:07]} c5 {[%emt 0:00:11]} 6. O-O {[%emt 0:00:19]} Nc6 {[%emt 0:00:13]} 7. dxc5 {[%emt 0:00:25]} Qxd1 {[%emt 0:00:28]} 8. Rxd1 {[%emt 0:00:03]} Bxc5 {[%emt 0:00:09]} 9. Nbd2 {[%emt 0:00:37]} c3 {[%emt 0:00:16]} 10. bxc3 {[%emt 0:00:06]} O-O {[%emt 0:00:14]} 11. Nb3 {[%emt 0:00:49]} Be7 {[%emt 0:00:17]} 12. c4 {[%emt 0:07:36]} Bd7 {[%emt 0:02:02]} 13. Bb2 {[%emt 0:06:07]} 1/2-1/2